[Event "Live Chess"]
[Site "Chess.com"]
[Date "2023.05.21"]
[Round "-"]
[White "RichardABates"]
[Black "Ian-Morley"]
[Result "1-0"]
[WhiteElo "2151"]
[BlackElo "1089"]
[TimeControl "300"]
[EndTime "7:50:04 PDT"]
[Termination "RichardABates won by resignation"]

1. d4 {[%clk 0:04:59.3]} 1... e5 {[%clk 0:04:56.5]} 2. dxe5 {[%clk 0:04:58]}
2... Nc6 {[%clk 0:04:55.9]} 3. Nf3 {[%clk 0:04:56.8]} 3... Qe7 {[%clk
0:04:55.5]} 4. Nc3 {[%clk 0:04:54.3]} 4... d6 {[%clk 0:04:49.7]} 5. exd6 {[%clk
0:04:51.4]} 5... Qxd6 {[%clk 0:04:47.8]} 6. Qxd6 {[%clk 0:04:49.7]} 6... Bxd6
{[%clk 0:04:46.9]} 7. Nb5 {[%clk 0:04:45.2]} 7... Kd8 {[%clk 0:04:43.9]} 8. Nxd6
{[%clk 0:04:43.5]} 8... cxd6 {[%clk 0:04:42.8]} 9. Bf4 {[%clk 0:04:41.2]} 9...
Kd7 {[%clk 0:04:38]} 10. O-O-O {[%clk 0:04:39.2]} 10... Ne5 {[%clk 0:04:33]} 11.
Nxe5+ {[%clk 0:04:37.3]} 11... Ke7 {[%clk 0:04:29.4]} 12. Nf3 {[%clk 0:04:32.8]}
12... d5 {[%clk 0:04:27.8]} 13. Rxd5 {[%clk 0:04:30.8]} 13... Bg4 {[%clk
0:04:27.1]} 14. Bd6+ {[%clk 0:04:21.7]} 14... Ke6 {[%clk 0:04:17]} 15. e4 {[%clk
0:04:20.3]} 15... Bxf3 {[%clk 0:04:16.1]} 16. gxf3 {[%clk 0:04:18.9]} 16... Rd8
{[%clk 0:04:14.9]} 17. Bh3+ {[%clk 0:04:16.8]} 17... Kf6 {[%clk 0:04:11.6]} 18.
e5+ {[%clk 0:04:10.6]} 18... Kg6 {[%clk 0:04:10.4]} 19. Rg1+ {[%clk 0:04:07.4]}
19... Kh6 {[%clk 0:04:08.8]} 20. e6 {[%clk 0:04:03.9]} 20... fxe6 {[%clk
0:04:05.5]} 21. Bf4+ {[%clk 0:04:02.4]} 21... g5 {[%clk 0:04:04.2]} 22. Bxg5+
{[%clk 0:04:00.3]} 22... Kg6 {[%clk 0:04:03.7]} 23. Bxd8+ {[%clk 0:03:57.6]} 1-0

[Event "Live Chess"]
[Site "Chess.com"]
[Date "2023.05.21"]
[Round "-"]
[White "GMHarry-youtube"]
[Black "davidlightfoot"]
[Result "1-0"]
[WhiteElo "2034"]
[BlackElo "680"]
[TimeControl "300"]
[EndTime "7:50:07 PDT"]
[Termination "GMHarry-youtube won by resignation"]

1. e4 {[%clk 0:04:59.4]} 1... c5 {[%clk 0:04:58.6]} 2. Nf3 {[%clk 0:04:58.8]}
2... e6 {[%clk 0:04:55.7]} 3. g3 {[%clk 0:04:56.7]} 3... Nc6 {[%clk 0:04:54.5]}
4. Bg2 {[%clk 0:04:56.1]} 4... d5 {[%clk 0:04:52.5]} 5. d3 {[%clk 0:04:52.3]}
5... dxe4 {[%clk 0:04:50.7]} 6. dxe4 {[%clk 0:04:52.2]} 6... Qxd1+ {[%clk
0:04:48.1]} 7. Kxd1 {[%clk 0:04:52.1]} 7... Bd6 {[%clk 0:04:44.9]} 8. Ke2 {[%clk
0:04:47]} 8... Nf6 {[%clk 0:04:42.7]} 9. Nc3 {[%clk 0:04:42.1]} 9... O-O {[%clk
0:04:38.1]} 10. Rd1 {[%clk 0:04:39.2]} 10... Rd8 {[%clk 0:04:28.8]} 11. e5
{[%clk 0:04:34.3]} 11... Nd4+ {[%clk 0:04:19.2]} 12. Nxd4 {[%clk 0:04:31]} 12...
cxd4 {[%clk 0:04:17]} 13. Rxd4 {[%clk 0:04:30.9]} 13... Be7 {[%clk 0:04:00.6]}
14. Rxd8+ {[%clk 0:04:21.4]} 14... Bxd8 {[%clk 0:03:57.8]} 15. exf6 {[%clk
0:04:21.3]} 15... Bxf6 {[%clk 0:03:55.1]} 16. Bf4 {[%clk 0:04:16.6]} 16... b6
{[%clk 0:03:46.7]} 17. Bxa8 {[%clk 0:04:09.3]} 1-0

[Event "Live Chess"]
[Site "Chess.com"]
[Date "2023.05.21"]
[Round "-"]
[White "McSlash1"]
[Black "ShanthamGrarks"]
[Result "1-0"]
[WhiteElo "2007"]
[BlackElo "1963"]
[TimeControl "300"]
[EndTime "7:50:11 PDT"]
[Termination "McSlash1 won by resignation"]

1. e4 {[%clk 0:04:57.8]} 1... e6 {[%clk 0:04:54.9]} 2. d4 {[%clk 0:04:56.8]}
2... d5 {[%clk 0:04:54.5]} 3. Nd2 {[%clk 0:04:56]} 3... Nf6 {[%clk 0:04:53.6]}
4. e5 {[%clk 0:04:55.4]} 4... Nfd7 {[%clk 0:04:53.3]} 5. Bd3 {[%clk 0:04:54.6]}
5... c5 {[%clk 0:04:53]} 6. c3 {[%clk 0:04:54.1]} 6... Nc6 {[%clk 0:04:52.2]} 7.
Ngf3 {[%clk 0:04:53.1]} 7... h6 {[%clk 0:04:51.8]} 8. O-O {[%clk 0:04:52]} 8...
Be7 {[%clk 0:04:51.4]} 9. Bc2 {[%clk 0:04:48.3]} 9... O-O {[%clk 0:04:50]} 10.
Nb3 {[%clk 0:04:46.8]} 10... f5 {[%clk 0:04:49.3]} 11. exf6 {[%clk 0:04:45.5]}
11... Nxf6 {[%clk 0:04:47.2]} 12. Nxc5 {[%clk 0:04:43]} 12... Bxc5 {[%clk
0:04:46]} 13. dxc5 {[%clk 0:04:42.9]} 13... e5 {[%clk 0:04:43.8]} 14. Re1 {[%clk
0:04:37.8]} 14... e4 {[%clk 0:04:41.8]} 15. Nd4 {[%clk 0:04:36.2]} 15... Ne5
{[%clk 0:04:39.8]} 16. Bf4 {[%clk 0:04:30.1]} 16... Neg4 {[%clk 0:04:38]} 17. h3
{[%clk 0:04:25.9]} 17... Nxf2 {[%clk 0:04:32.8]} 18. Kxf2 {[%clk 0:04:22.2]}
18... g6 {[%clk 0:04:24.4]} 19. Kg1 {[%clk 0:04:19.1]} 19... Nh5 {[%clk
0:04:17.6]} 20. Bd6 {[%clk 0:04:18.1]} 20... Rf6 {[%clk 0:03:56.1]} 21. Rf1
{[%clk 0:04:17.2]} 21... Rxf1+ {[%clk 0:03:54]} 22. Qxf1 {[%clk 0:04:17.1]}
22... Bd7 {[%clk 0:03:46.4]} 23. Bb3 {[%clk 0:04:11.4]} 23... Qg5 {[%clk
0:03:41.5]} 24. Qf2 {[%clk 0:04:02.3]} 24... e3 {[%clk 0:03:37]} 25. Qf3 {[%clk
0:04:00.2]} 25... Bc6 {[%clk 0:03:25.3]} 26. Nxc6 {[%clk 0:03:35.5]} 26... bxc6
{[%clk 0:03:14.9]} 27. Rf1 {[%clk 0:03:33.2]} 27... Ng7 {[%clk 0:02:48.1]} 28.
Qf7+ {[%clk 0:03:21]} 28... Kh7 {[%clk 0:02:46.4]} 29. Bf8 {[%clk 0:03:20.3]}
29... Rxf8 {[%clk 0:02:41.5]} 30. Qxf8 {[%clk 0:03:20.2]} 30... e2 {[%clk
0:02:37]} 31. Re1 {[%clk 0:03:19.5]} 31... Qd2 {[%clk 0:02:24.1]} 32. Qf2 {[%clk
0:03:17.6]} 32... Nf5 {[%clk 0:02:18.3]} 33. Qxe2 {[%clk 0:03:16]} 33... Qg5
{[%clk 0:02:11.3]} 34. Bc2 {[%clk 0:03:13.3]} 34... Ng7 {[%clk 0:02:05.8]} 35.
Rf1 {[%clk 0:03:09]} 35... h5 {[%clk 0:02:04.5]} 36. Rf7 {[%clk 0:03:07.5]}
36... Qc1+ {[%clk 0:02:00.3]} 37. Kh2 {[%clk 0:03:05.9]} 37... Qg5 {[%clk
0:01:57.4]} 38. Qe7 {[%clk 0:02:58]} 38... Qh6 {[%clk 0:01:56]} 39. h4 {[%clk
0:02:46.5]} 39... Kg8 {[%clk 0:01:41.6]} 40. Qf8+ {[%clk 0:02:44.2]} 40... Kh7
{[%clk 0:01:41.1]} 41. Rf6 {[%clk 0:02:36.3]} 41... Nf5 {[%clk 0:01:26.4]} 42.
Qxh6+ {[%clk 0:02:15.3]} 42... Nxh6 {[%clk 0:01:24.4]} 43. Rxg6 {[%clk
0:02:11.1]} 43... Ng4+ {[%clk 0:01:18.4]} 44. Rxg4+ {[%clk 0:02:09.2]} 1-0

[Event "Live Chess"]
[Site "Chess.com"]
[Date "2023.05.21"]
[Round "-"]
[White "NatashaRegan"]
[Black "zdanevych"]
[Result "1-0"]
[WhiteElo "1713"]
[BlackElo "1466"]
[TimeControl "300"]
[EndTime "7:50:24 PDT"]
[Termination "NatashaRegan won on time"]

1. e4 {[%clk 0:04:56.4]} 1... c5 {[%clk 0:04:58.6]} 2. Nc3 {[%clk 0:04:53.7]}
2... e6 {[%clk 0:04:58.1]} 3. f4 {[%clk 0:04:52.4]} 3... d5 {[%clk 0:04:57.2]}
4. e5 {[%clk 0:04:48]} 4... Nc6 {[%clk 0:04:53.1]} 5. Nf3 {[%clk 0:04:45.7]}
5... Nge7 {[%clk 0:04:47.1]} 6. Bb5 {[%clk 0:04:36.6]} 6... a6 {[%clk
0:04:45.3]} 7. Bxc6+ {[%clk 0:04:33.8]} 7... bxc6 {[%clk 0:04:45.2]} 8. d3
{[%clk 0:04:31.3]} 8... Nf5 {[%clk 0:04:42.5]} 9. O-O {[%clk 0:04:27.7]} 9... g6
{[%clk 0:04:41.2]} 10. g4 {[%clk 0:04:24.4]} 10... Nd4 {[%clk 0:04:34.4]} 11.
Be3 {[%clk 0:04:14.5]} 11... Nb5 {[%clk 0:04:26.7]} 12. d4 {[%clk 0:04:03.7]}
12... cxd4 {[%clk 0:04:22.4]} 13. Nxb5 {[%clk 0:03:59.6]} 13... dxe3 {[%clk
0:04:11.2]} 14. Nd6+ {[%clk 0:03:52]} 14... Bxd6 {[%clk 0:04:09.6]} 15. exd6
{[%clk 0:03:50.7]} 15... Qxd6 {[%clk 0:04:06.9]} 16. Qd4 {[%clk 0:03:49.3]}
16... O-O {[%clk 0:03:58.5]} 17. Qxe3 {[%clk 0:03:42.4]} 17... Bd7 {[%clk
0:03:52.1]} 18. Ne5 {[%clk 0:03:33.8]} 18... Rfb8 {[%clk 0:03:40.8]} 19. b3
{[%clk 0:03:29]} 19... Be8 {[%clk 0:03:35.2]} 20. g5 {[%clk 0:03:24.5]} 20... c5
{[%clk 0:03:31.7]} 21. Qh3 {[%clk 0:03:22]} 21... Bb5 {[%clk 0:03:12.2]} 22. Rf3
{[%clk 0:03:15.3]} 22... c4 {[%clk 0:02:57.9]} 23. Qh6 {[%clk 0:03:12]} 23...
Qf8 {[%clk 0:02:52.1]} 24. Qh4 {[%clk 0:03:06.7]} 24... cxb3 {[%clk 0:02:48.7]}
25. cxb3 {[%clk 0:03:02.9]} 25... Rc8 {[%clk 0:02:46.3]} 26. Re1 {[%clk
0:02:56.4]} 26... Rc2 {[%clk 0:02:42.6]} 27. Rh3 {[%clk 0:02:51]} 27... Qg7
{[%clk 0:02:38.8]} 28. Ng4 {[%clk 0:02:42.5]} 28... Qd4+ {[%clk 0:02:22.1]} 29.
Kh1 {[%clk 0:02:40.5]} 29... Rac8 {[%clk 0:01:34]} 30. Qh6 {[%clk 0:02:31]}
30... Qg7 {[%clk 0:01:30.5]} 31. Nf6+ {[%clk 0:02:27.2]} 31... Kf8 {[%clk
0:01:27.7]} 32. Nxh7+ {[%clk 0:02:23.9]} 32... Kg8 {[%clk 0:01:26.8]} 33. Nf6+
{[%clk 0:02:21.7]} 33... Kf8 {[%clk 0:01:26.2]} 34. Qh4 {[%clk 0:01:57.2]} 34...
Rc1 {[%clk 0:01:10.8]} 35. Re3 {[%clk 0:01:50.2]} 35... Rxe1+ {[%clk 0:01:08.1]}
36. Rxe1 {[%clk 0:01:48.2]} 36... Ke7 {[%clk 0:01:04.5]} 37. Nxd5+ {[%clk
0:01:44.1]} 37... Kd6 {[%clk 0:00:55.6]} 38. Nf6 {[%clk 0:01:40.5]} 38... Qf8
{[%clk 0:00:48.8]} 39. Qf2 {[%clk 0:01:37.5]} 39... Ke7 {[%clk 0:00:42.4]} 40.
Qd4 {[%clk 0:01:32.9]} 40... Qd8 {[%clk 0:00:39.4]} 41. Qb4+ {[%clk 0:01:26.9]}
41... Qd6 {[%clk 0:00:33.7]} 42. Nd5+ {[%clk 0:01:12.4]} 42... Kd7 {[%clk
0:00:27.9]} 43. Nf6+ {[%clk 0:01:04.7]} 43... Ke7 {[%clk 0:00:26.6]} 44. Qe4
{[%clk 0:00:58.9]} 44... Bc6 {[%clk 0:00:20.9]} 45. Kg2 {[%clk 0:00:42.6]} 45...
Bxe4+ {[%clk 0:00:19.5]} 46. Nxe4 {[%clk 0:00:41.3]} 46... Rc2+ {[%clk
0:00:17.5]} 47. Kf3 {[%clk 0:00:39.8]} 47... Qc6 {[%clk 0:00:16.5]} 48. Re3
{[%clk 0:00:37.9]} 48... Qxe4+ {[%clk 0:00:12.9]} 49. Kxe4 {[%clk 0:00:36.5]}
49... Rxa2 {[%clk 0:00:11.4]} 50. Rc3 {[%clk 0:00:34.8]} 50... Rxh2 {[%clk
0:00:08.7]} 51. Ke5 {[%clk 0:00:32.6]} 51... Re2+ {[%clk 0:00:07.8]} 52. Kd4
{[%clk 0:00:30.6]} 52... Rd2+ {[%clk 0:00:07]} 53. Kc5 {[%clk 0:00:29.3]} 53...
Rd5+ {[%clk 0:00:06.9]} 54. Kb6 {[%clk 0:00:28.2]} 54... Rd6+ {[%clk 0:00:05.6]}
55. Ka5 {[%clk 0:00:26.6]} 55... f6 {[%clk 0:00:05]} 56. Rc7+ {[%clk 0:00:24.7]}
56... Rd7 {[%clk 0:00:04.1]} 57. gxf6+ {[%clk 0:00:23.2]} 57... Kxf6 {[%clk
0:00:02.8]} 58. Rxd7 {[%clk 0:00:22.1]} 58... Kf5 {[%clk 0:00:02.7]} 59. Rf7+
{[%clk 0:00:20.8]} 59... Ke4 {[%clk 0:00:00.9]} 60. Rf8 {[%clk 0:00:19.9]} 1-0

[Event "Live Chess"]
[Site "Chess.com"]
[Date "2023.05.21"]
[Round "-"]
[White "Ferrarifan27"]
[Black "Inglaterra"]
[Result "1-0"]
[WhiteElo "2047"]
[BlackElo "2046"]
[TimeControl "300"]
[EndTime "7:50:28 PDT"]
[Termination "Ferrarifan27 won by resignation"]

1. e4 {[%clk 0:04:58.8]} 1... d6 {[%clk 0:04:58.2]} 2. d4 {[%clk 0:04:57.2]}
2... Nf6 {[%clk 0:04:57.7]} 3. Nc3 {[%clk 0:04:52.1]} 3... g6 {[%clk 0:04:56]}
4. Nf3 {[%clk 0:04:47.1]} 4... Bg7 {[%clk 0:04:55.5]} 5. Bg5 {[%clk 0:04:45.6]}
5... O-O {[%clk 0:04:54]} 6. Qd2 {[%clk 0:04:44.6]} 6... c6 {[%clk 0:04:51.5]}
7. Bd3 {[%clk 0:04:42.9]} 7... b5 {[%clk 0:04:43.2]} 8. O-O {[%clk 0:04:40.5]}
8... Nbd7 {[%clk 0:04:33.8]} 9. a3 {[%clk 0:04:37.8]} 9... a6 {[%clk 0:04:26.8]}
10. Bh6 {[%clk 0:04:35.4]} 10... c5 {[%clk 0:04:23.7]} 11. Bxg7 {[%clk
0:04:28.6]} 11... Kxg7 {[%clk 0:04:22.5]} 12. e5 {[%clk 0:04:27.9]} 12... Ng8
{[%clk 0:04:03.8]} 13. exd6 {[%clk 0:04:24]} 13... exd6 {[%clk 0:04:03.7]} 14.
Be4 {[%clk 0:04:20.9]} 14... Rb8 {[%clk 0:03:59.4]} 15. dxc5 {[%clk 0:04:18.6]}
15... dxc5 {[%clk 0:03:48.4]} 16. Rad1 {[%clk 0:04:16.2]} 16... Qc7 {[%clk
0:03:42.9]} 17. Nd5 {[%clk 0:04:12.8]} 17... Qa7 {[%clk 0:03:31.5]} 18. Qc3+
{[%clk 0:04:07.9]} 18... Ndf6 {[%clk 0:03:25.8]} 19. Nxf6 {[%clk 0:03:56.5]}
19... Nxf6 {[%clk 0:03:25.7]} 20. Rfe1 {[%clk 0:03:27.3]} 20... Bg4 {[%clk
0:03:05.8]} 21. h3 {[%clk 0:03:12.1]} 21... Bxf3 {[%clk 0:03:03.8]} 22. Bxf3
{[%clk 0:03:11.7]} 22... Rfe8 {[%clk 0:02:56.6]} 23. Rxe8 {[%clk 0:03:05.4]}
23... Rxe8 {[%clk 0:02:54.4]} 24. Rd6 {[%clk 0:02:56.2]} 24... Re6 {[%clk
0:02:37.2]} 25. Rxe6 {[%clk 0:02:49.1]} 25... fxe6 {[%clk 0:02:36.7]} 26. Qe5
{[%clk 0:02:46.3]} 26... Qb6 {[%clk 0:02:06.6]} 27. h4 {[%clk 0:02:28.7]} 27...
c4 {[%clk 0:01:58.6]} 28. g4 {[%clk 0:02:15]} 28... Kf7 {[%clk 0:01:54.1]} 29.
g5 {[%clk 0:02:12.7]} 29... Ne8 {[%clk 0:01:49.1]} 30. Qh8 {[%clk 0:02:09]}
30... Ng7 {[%clk 0:01:45.4]} 31. Qxh7 {[%clk 0:02:06.6]} 31... Qd4 {[%clk
0:01:25.4]} 32. c3 {[%clk 0:01:51.2]} 32... Qf4 {[%clk 0:01:16.2]} 33. Kg2
{[%clk 0:01:42.7]} 33... e5 {[%clk 0:01:14.6]} 34. Bd5+ {[%clk 0:01:39.5]} 34...
Ke8 {[%clk 0:01:00.7]} 35. Qg8+ {[%clk 0:01:19.9]} 35... Qf8 {[%clk 0:00:59.3]}
36. Bf7+ {[%clk 0:01:18]} 36... Ke7 {[%clk 0:00:56.9]} 37. Qxf8+ {[%clk
0:01:17.2]} 37... Kxf8 {[%clk 0:00:55.2]} 38. Bxg6 {[%clk 0:01:16.2]} 38... Ne6
{[%clk 0:00:51.1]} 39. Kf3 {[%clk 0:01:09.9]} 39... Kg7 {[%clk 0:00:48.4]} 40.
Bf5 {[%clk 0:01:08.3]} 40... Nc5 {[%clk 0:00:42.7]} 41. Bc2 {[%clk 0:01:00.8]}
41... a5 {[%clk 0:00:23]} 42. h5 {[%clk 0:00:58]} 1-0

[Event "Live Chess"]
[Site "Chess.com"]
[Date "2023.05.21"]
[Round "-"]
[White "NomisY"]
[Black "FlyingChessKestrel13"]
[Result "1-0"]
[WhiteElo "1543"]
[BlackElo "2048"]
[TimeControl "300"]
[EndTime "7:50:32 PDT"]
[Termination "NomisY won by resignation"]

1. d4 {[%clk 0:04:57.7]} 1... d5 {[%clk 0:04:57.8]} 2. c4 {[%clk 0:04:56.7]}
2... dxc4 {[%clk 0:04:56]} 3. Nf3 {[%clk 0:04:55.6]} 3... Nf6 {[%clk 0:04:55.1]}
4. e3 {[%clk 0:04:54.6]} 4... e6 {[%clk 0:04:53.8]} 5. Bxc4 {[%clk 0:04:53.7]}
5... a6 {[%clk 0:04:53.1]} 6. a4 {[%clk 0:04:52.2]} 6... c5 {[%clk 0:04:51.6]}
7. O-O {[%clk 0:04:50.7]} 7... Nc6 {[%clk 0:04:25.5]} 8. dxc5 {[%clk 0:04:09.6]}
8... Qc7 {[%clk 0:04:17.2]} 9. b3 {[%clk 0:04:00.9]} 9... Bxc5 {[%clk
0:04:15.4]} 10. Bb2 {[%clk 0:03:59.2]} 10... e5 {[%clk 0:04:11]} 11. Nbd2 {[%clk
0:03:51.3]} 11... O-O {[%clk 0:04:06.2]} 12. Qc2 {[%clk 0:03:49.6]} 12... Bg4
{[%clk 0:03:58]} 13. Rac1 {[%clk 0:03:40]} 13... Rfe8 {[%clk 0:03:56.4]} 14. Ne4
{[%clk 0:03:33.1]} 14... Nxe4 {[%clk 0:03:48.7]} 15. Qxe4 {[%clk 0:03:32.1]}
15... Bh5 {[%clk 0:03:45.6]} 16. Nh4 {[%clk 0:03:23.9]} 16... Bd6 {[%clk
0:03:36.8]} 17. g4 {[%clk 0:03:17.9]} 17... Bg6 {[%clk 0:03:35.8]} 18. Nxg6
{[%clk 0:03:15.8]} 18... hxg6 {[%clk 0:03:35]} 19. Qxg6 {[%clk 0:03:10.4]} 19...
Qe7 {[%clk 0:03:06.2]} 20. Qh5 {[%clk 0:02:59.7]} 20... Qf6 {[%clk 0:03:02.4]}
21. g5 {[%clk 0:02:49.6]} 21... Qf5 {[%clk 0:02:55.1]} 22. e4 {[%clk 0:02:48.3]}
22... Qxe4 {[%clk 0:02:40.2]} 23. Qxf7+ {[%clk 0:02:42.1]} 23... Kh8 {[%clk
0:02:30.5]} 24. Rc3 {[%clk 0:02:41.2]} 24... Qh7 {[%clk 0:02:16.6]} 25. Kg2
{[%clk 0:02:34.8]} 25... Rf8 {[%clk 0:02:13.6]} 26. Qd5 {[%clk 0:02:23.6]} 26...
Rf4 {[%clk 0:02:01.7]} 27. Qxd6 {[%clk 0:02:21.8]} 27... Rg4+ {[%clk 0:01:55]}
28. Rg3 {[%clk 0:02:16.9]} 28... Rxg3+ {[%clk 0:01:50.9]} 29. fxg3 {[%clk
0:02:11]} 29... Qc2+ {[%clk 0:01:22.1]} 30. Rf2 {[%clk 0:02:00.4]} 30... Qe4+
{[%clk 0:01:20.6]} 31. Kh3 {[%clk 0:01:55.9]} 31... Qh7+ {[%clk 0:01:15.1]} 32.
Kg4 {[%clk 0:01:36.7]} 32... Qe4+ {[%clk 0:01:13.3]} 33. Rf4 {[%clk 0:01:35.7]}
33... exf4 {[%clk 0:00:58.9]} 34. Bxg7+ {[%clk 0:01:33.2]} 1-0

[Event "Live Chess"]
[Site "Chess.com"]
[Date "2023.05.21"]
[Round "-"]
[White "TheSmoulderingMaster"]
[Black "Conradical12"]
[Result "0-1"]
[WhiteElo "1660"]
[BlackElo "1543"]
[TimeControl "300"]
[EndTime "7:50:47 PDT"]
[Termination "Conradical12 won by resignation"]

1. e4 {[%clk 0:04:57.7]} 1... e5 {[%clk 0:04:59.1]} 2. Nf3 {[%clk 0:04:56.4]}
2... Nc6 {[%clk 0:04:58.5]} 3. Bb5 {[%clk 0:04:54.8]} 3... Nf6 {[%clk
0:04:57.1]} 4. O-O {[%clk 0:04:53.6]} 4... Bc5 {[%clk 0:04:55]} 5. c3 {[%clk
0:04:52.6]} 5... Ng4 {[%clk 0:04:53.4]} 6. d4 {[%clk 0:04:51]} 6... exd4 {[%clk
0:04:51.3]} 7. cxd4 {[%clk 0:04:50.3]} 7... Bb6 {[%clk 0:04:50.1]} 8. Bg5 {[%clk
0:04:47.6]} 8... f6 {[%clk 0:04:48.5]} 9. Bh4 {[%clk 0:04:46]} 9... h5 {[%clk
0:04:48.1]} 10. h3 {[%clk 0:04:43.5]} 10... g5 {[%clk 0:04:42.6]} 11. Bg3 {[%clk
0:04:39.8]} 11... Qe7 {[%clk 0:04:39.6]} 12. hxg4 {[%clk 0:04:38]} 12... hxg4
{[%clk 0:04:38.2]} 13. Nfd2 {[%clk 0:04:33.9]} 13... Qh7 {[%clk 0:04:34.3]} 14.
f4 {[%clk 0:04:25.5]} 14... Bxd4+ {[%clk 0:04:32.4]} 0-1

[Event "Live Chess"]
[Site "Chess.com"]
[Date "2023.05.21"]
[Round "-"]
[White "Biranidun"]
[Black "AlanPaling"]
[Result "1-0"]
[WhiteElo "2519"]
[BlackElo "1399"]
[TimeControl "300"]
[EndTime "7:50:51 PDT"]
[Termination "Biranidun won by resignation"]

1. e4 {[%clk 0:04:59.4]} 1... Nf6 {[%clk 0:04:57.3]} 2. e5 {[%clk 0:04:58.6]}
2... Nd5 {[%clk 0:04:55.8]} 3. d4 {[%clk 0:04:58.5]} 3... d6 {[%clk 0:04:54.3]}
4. Nf3 {[%clk 0:04:58.1]} 4... Bg4 {[%clk 0:04:52.2]} 5. Be2 {[%clk 0:04:56.9]}
5... e6 {[%clk 0:04:50.9]} 6. O-O {[%clk 0:04:55.7]} 6... Be7 {[%clk 0:04:47.4]}
7. c4 {[%clk 0:04:55]} 7... Nb6 {[%clk 0:04:45.6]} 8. h3 {[%clk 0:04:54.6]} 8...
Bh5 {[%clk 0:04:42.7]} 9. exd6 {[%clk 0:04:52.6]} 9... cxd6 {[%clk 0:04:41]} 10.
Nc3 {[%clk 0:04:52.1]} 10... O-O {[%clk 0:04:38.8]} 11. Be3 {[%clk 0:04:50.7]}
11... d5 {[%clk 0:04:35.2]} 12. c5 {[%clk 0:04:49.7]} 12... Nc8 {[%clk
0:04:31.4]} 13. b4 {[%clk 0:04:46.1]} 13... Bf6 {[%clk 0:04:24.9]} 14. a4 {[%clk
0:04:37]} 14... a6 {[%clk 0:04:22.3]} 15. b5 {[%clk 0:04:35.3]} 15... axb5
{[%clk 0:04:20.2]} 16. axb5 {[%clk 0:04:35.2]} 16... Rxa1 {[%clk 0:04:12.7]} 17.
Qxa1 {[%clk 0:04:35.1]} 17... Nd7 {[%clk 0:04:05.2]} 18. g4 {[%clk 0:04:34]}
18... Bg6 {[%clk 0:04:01.2]} 19. b6 {[%clk 0:04:29]} 19... Ne7 {[%clk
0:03:54.6]} 20. g5 {[%clk 0:04:27.6]} 20... Nf5 {[%clk 0:03:28.9]} 21. gxf6
{[%clk 0:04:26.1]} 21... Nxe3 {[%clk 0:03:26.8]} 22. fxg7 {[%clk 0:04:23.5]}
22... Kxg7 {[%clk 0:03:18.7]} 23. fxe3 {[%clk 0:04:22.8]} 23... Nb8 {[%clk
0:03:04.7]} 24. Qe1 {[%clk 0:04:18.3]} 24... Nc6 {[%clk 0:03:00.5]} 25. Qg3
{[%clk 0:04:17.6]} 25... Qb8 {[%clk 0:02:43]} 26. Qxb8 {[%clk 0:04:16]} 26...
Rxb8 {[%clk 0:02:41.3]} 27. Ra1 {[%clk 0:04:15.1]} 27... Bh5 {[%clk 0:02:27]}
28. Nb5 {[%clk 0:04:13.9]} 28... Bxf3 {[%clk 0:02:19.6]} 29. Bxf3 {[%clk
0:04:13.8]} 29... f5 {[%clk 0:02:18.6]} 30. Nd6 {[%clk 0:04:12.7]} 30... Kf6
{[%clk 0:02:07.6]} 31. Kf2 {[%clk 0:04:12.1]} 31... e5 {[%clk 0:02:04.2]} 32.
Bxd5 {[%clk 0:04:10.5]} 32... exd4 {[%clk 0:01:56.8]} 33. Bxc6 {[%clk
0:04:08.9]} 1-0

[Event "Live Chess"]
[Site "Chess.com"]
[Date "2023.05.21"]
[Round "-"]
[White "viktorskliarov"]
[Black "EdenHazard8"]
[Result "1-0"]
[WhiteElo "2646"]
[BlackElo "1924"]
[TimeControl "300"]
[EndTime "7:50:53 PDT"]
[Termination "viktorskliarov won by resignation"]

1. e4 {[%clk 0:04:55.4]} 1... c5 {[%clk 0:04:58]} 2. Nf3 {[%clk 0:04:50.6]} 2...
Nc6 {[%clk 0:04:57.5]} 3. Bb5 {[%clk 0:04:49.2]} 3... g6 {[%clk 0:04:53.5]} 4.
O-O {[%clk 0:04:47.9]} 4... Nd4 {[%clk 0:04:49.4]} 5. Nxd4 {[%clk 0:04:45]} 5...
cxd4 {[%clk 0:04:48]} 6. c3 {[%clk 0:04:43.2]} 6... dxc3 {[%clk 0:04:46.6]} 7.
bxc3 {[%clk 0:04:41.1]} 7... Bg7 {[%clk 0:04:45.4]} 8. d4 {[%clk 0:04:39.4]}
8... a6 {[%clk 0:04:43.5]} 9. Bc4 {[%clk 0:04:28.4]} 9... e6 {[%clk 0:04:41.6]}
10. e5 {[%clk 0:04:21.8]} 10... b5 {[%clk 0:04:39.6]} 11. Be2 {[%clk 0:04:17.9]}
11... Bb7 {[%clk 0:04:38.1]} 12. Bf3 {[%clk 0:04:16.4]} 12... Bxf3 {[%clk
0:04:36.2]} 13. Qxf3 {[%clk 0:04:14.8]} 13... Ne7 {[%clk 0:04:36.1]} 14. Nd2
{[%clk 0:04:12.5]} 14... Rc8 {[%clk 0:04:33.6]} 15. Ne4 {[%clk 0:04:11.3]} 15...
Nd5 {[%clk 0:04:30.8]} 16. Nd6+ {[%clk 0:04:00]} 1-0